Cogmind - Beta 15 @@@ ROGUE MODE // 2025.10.06 @ 12:37:45 Player: ForestDarkPsy Result: Destroyed by SS-991(R) with Subdweller Machine Gun Performance ------------- Evolutions (0) 0 Regions Visited (3) 600 Robots Destroyed (9) 45 Value Destroyed (174) 174 Prototype IDs (0) 0 Alien Tech Used (0) 0 Bonus (0) 0 TOTAL SCORE: 819 Bonus ------- None Cogmind --------- Core Integrity 0/250 Matter 208/300 Energy 200/200 System Corruption 0% Temperature Cool (0) Movement Walking (190) Ox1 Location -10/Subcaves Parts ------- > --- POWER (1) -------- Subdweller Power Source > --- PROPULSION (2) --- Carbon-fiber Leg > --- UTILITY (2) ------ Medium Storage Unit Subdweller Optics > --- WEAPON (2) ------- Flak Cannon Great Maul > --- INVENTORY (10) --- Subdweller Monowheel Airjet Cryofiber Web Improved Heat Sink Large Storage Unit Signal Interpreter Battle Rifle Grenade Launcher Peak State ------------ > --- POWER ------------ Subdweller Power Source > --- PROPULSION ------- Aluminum Leg Carbon-fiber Leg > --- UTILITY ---------- Medium Storage Unit Subdweller Optics > --- WEAPON ----------- Flak Cannon Great Maul > --- INVENTORY -------- Subdweller Monowheel Airjet Cryofiber Web Improved Heat Sink Large Storage Unit Signal Interpreter Battle Rifle Grenade Launcher [Rating: 16] Favorites ----------- Power Ion Engine Engine Ion Engine Propulsion Aluminum Leg Leg Aluminum Leg Utility Medium Storage Unit Device Seismic Detector Storage Medium Storage Unit Protection Light Armor Plating Weapon Small Laser Energy Gun Small Laser Ballistic Gun Assault Rifle Ballistic Cannon Flak Cannon Launcher Grenade Launcher Impact Weapon Great Maul Slashing Weapon Mining Claw Build | -11 -10 -10 -10 ------- Run | Yrd Mat Min Sub Slots Evolved . | . . . . Power . | . . . . Propulsion . | . . . . Utility . | . . . . Weapon . | . . . . Parts Attached 15 | 6 2 1 6 Power 2 | 1 . . 1 Engine 2 | 1 . . 1 Core . | . . . . Reactor . | . . . . Propulsion 3 | 2 . 1 . Treads . | . . . . Leg 3 | 2 . 1 . Wheel . | . . . . Hover . | . . . . Flight . | . . . . Utility 4 | 1 2 . 1 Device 2 | 1 . . 1 Storage 1 | . 1 . . Processor . | . . . . Hackware . | . . . . Protection 1 | . 1 . . Artifact . | . . . . Weapon 6 | 2 . . 4 Energy Gun 1 | 1 . . . Energy Cannon . | . . . . Ballistic Gun 1 | 1 . . . Ballistic Cannon 1 | . . . 1 Launcher 1 | . . . 1 Special Weapon . | . . . . Impact Weapon 1 | . . . 1 Slashing Weapon 1 | . . . 1 Piercing Weapon . | . . . . Special Melee Weapon . | . . . . Unidentified Prototypes . | . . . . Parts Lost 5 | . . 3 2 Power 1 | . . 1 . Propulsion 2 | . . 1 1 Utility 1 | . . . 1 Weapon 1 | . . 1 . Highest Loss Streak 3 | . . 3 1 To Critical Strikes . | . . . . Average Backups 6 | . 2 9 6 Power . | . . . . Propulsion . | . . 1 1 Utility 3 | . 1 4 4 Weapon 2 | . 1 3 1 Tool/Special . | . . . . Unused Backups 8 | . . 2 6 Power . | . . . . Propulsion 1 | . . . 1 Utility 6 | . . 2 4 Weapon 1 | . . . 1 Tool/Special . | . . . . Average Slot Usage (%) 91 | . 92 98 84 Engine 12 | . 14 13 11 Leg 27 | . 28 27 27 Device 9 | . 14 14 3 Storage 10 | . . 14 14 Protection 1 | . 5 . . Energy Gun 8 | . 14 13 . Ballistic Gun 8 | . 14 14 . Launcher 4 | . . . 12 Impact Weapon 5 | . . . 13 Peak Build Rating 16 | 6 7 11 16 Average Rating 9 | 4 6 8 11 On Entrance 5 | . 6 7 8 Naked Turns . | . . . . Heaviest Build 24 | 9 19 19 24 Greatest Support 25 | 20 20 25 25 Greatest Overweight (x) 1 | 1 . . . Average Overweight (x) . | . . . . Largest Inventory Capacity 10 | 5 10 10 10 Average Capacity 8 | 5 5 10 10 Most Carried 10 | . 6 10 9 Average Carried 6 | . 2 9 6 Final Capacity 10 | 5 10 10 10 Final Carried 10 | . 6 10 8 Class Distribution -------------------- 100% | Mutant Dominant Class ---------------- Mutant | -10/Materials Mutant | -10/Mines Mutant | -10/Subcaves Resources | -11 -10 -10 -10 ----------- Run | Yrd Mat Min Sub Matter Collected 378 | 272 25 29 52 Remotely . | . . . . Salvage Created 202 | 24 55 54 69 Parts 15 | 2 3 3 7 Haulers Intercepted . | . . . . Recyclers Shooed . | . . . . Parts Field Recycled . | . . . . Retrieved Matter . | . . . . Parts Self-Destructed 8 | . . . 8 Prevented . | . . . . Kills | -11 -10 -10 -10 ------- Run | Yrd Mat Min Sub Combat Hostiles Destroyed 6 | . . 3 3 Guns 3 | . . 3 . AOE 2 | . . . 2 Classes Destroyed 5 | 1 2 1 1 Worker 1 | . 1 . . Tunneler 1 | 1 . . . Watcher 1 | . 1 . . Swarmer 3 | . . 3 . Subdweller 3 | . . . 3 Best Kill Streak 3 | 1 2 3 2 Combat Bots Only 3 | . . 3 2 Max Kills in Single Turn 1 | 1 1 1 1 Gunslinging . | . . . . Exploded 1 | . . . 1 Melee . | . . . . Uniques/NPCs Destroyed . | . . . . Combat | -11 -10 -10 -10 -------- Run | Yrd Mat Min Sub Hostile Shots Fired 42 | . . 29 13 Missed 5 | . . 3 2 Hits 37 | . . 26 11 Projectile 37 | . . 26 11 AOE 11 | . . 11 . Damage Taken 879 | . 34 583 262 Core 268 | . 34 161 73 Absorbed by Shields . | . . . . Core Remaining (%) 100 | 100 . . . Volleys Fired 27 | 4 5 6 12 Largest 2 | 2 2 2 1 Hottest 60 | 60 60 60 37 Shots Fired 42 | 8 10 12 12 Gun 30 | 8 10 12 . Cannon 9 | . . . 9 Launcher 3 | . . . 3 Special . | . . . . Kinetic 24 | 4 5 6 9 Thermal 15 | 4 5 6 . Explosive 3 | . . . 3 Electromagnetic . | . . . . Robot Hit Streak 17 | 3 2 2 17 Robot Miss Streak 3 | . 3 2 1 Penetration Max . | . . . . Secondary Targets . | . . . . Shots Hit Robots 24 | 3 4 6 11 Core Hits 13 | 1 6 3 3 Critical Kills . | . . . . Critical Parts Destroyed 1 | . . . 1 Critical Strikes 1 | . . . 1 Smash 1 | . . . 1 Melee Attacks 2 | . . . 2 Impact 2 | . . . 2 Slashing . | . . . . Piercing . | . . . . Sneak Attacks . | . . . . Combat Hostiles . | . . . . Follow-up Attacks . | . . . . Damage Inflicted 554 | 33 73 122 326 Guns 224 | 33 69 122 . Cannons . | . . . . Explosions 238 | . . . 238 Melee 88 | . . . 88 Ramming 4 | . 4 . . Kinetic 114 | 11 35 68 . Thermal 110 | 22 34 54 . Explosive 238 | . . . 238 Electromagnetic . | . . . . Impact 88 | . . . 88 Slashing . | . . . . Piercing . | . . . . Highest Corruption . | . . . . Average Corruption . | . . . . Corruption Purged . | . . . . Corruption Blocked . | . . . . Overload Shots . | . . . . Overflow Damage 50 | . . . 50 Projectiles . | . . . . Explosions . | . . . . Melee 50 | . . . 50 Knockbacks . | . . . . Impact . | . . . . Kinetic . | . . . . Secondary . | . . . . Self-Inflicted Damage . | . . . . Shots . | . . . . Rammed . | . . . . Targets Rammed 2 | . 2 . . Kicked 2 | . 2 . . Crushed . | . . . . Highest Temperature 27 | . 27 . . Average Temperature 14 | . 14 . . Received Heat Transfer 54 | . . 9 45 Siege Activations . | . . . . Martial Activations . | . . . . Shielding Activations . | . . . . Robots Disrupted . | . . . . Combat Hostiles . | . . . . Robots Corrupted 1 | . . . 1 Combat Hostiles 1 | . . . 1 Parts Fried 3 | . . . 3 Impact Corruptions 1 | . . . 1 Robots Melted . | . . . . Combat Hostiles . | . . . . Parts Melted . | . . . . Heat Transferred 250 | 50 75 125 . Parts Sabotaged . | . . . . Parts Stolen . | . . . . Parts Stripped . | . . . . Power Chain Reactions . | . . . . Alert | -11 -10 -10 -10 ------- Run | Yrd Mat Min Sub Maximum Alert Level . | . . . . Low Security (%) 100 | 100 100 100 . Level 1 . | . . . . Level 2 . | . . . . Level 3 . | . . . . Level 4 . | . . . . Level 5 . | . . . . High Security . | . . . . Max Security . | . . . . Peak Influence 60 | 5 12 60 . Initial . | . . . . Average 6 | . . 12 . Influence Increases 92 | 5 17 70 . Destroy 0b10 Robot/C 60 | . . 60 . Destroy 0b10 Robot/NC 15 | 5 10 . . Destroy Leader 12 | . 2 10 . Successful Hack 5 | . 5 . . Influence Decreases 92 | 5 17 70 . Time Decay 92 | 5 17 70 . Squads Dispatched 1 | . . 1 . Investigation 1 | . . 1 . Extermination . | . . . . Reinforcement . | . . . . Assault . | . . . . Garrison . | . . . . Intercept . | . . . . Searches Triggered . | . . . . Construction Impeded . | . . . . Haulers Reinforced . | . . . . Active Scanning Responses . | . . . . Cargo Convoy Interrupts . | . . . . Stealth | -11 -10 -10 -10 --------- Run | Yrd Mat Min Sub Distress Signals . | . . . . Communications Jammed . | . . . . Distress Signals . | . . . . Times Spotted 14 | . 4 6 4 Peak Tracking Total 3 | . 2 3 2 Tactical Retreats . | . . . . Traps | -11 -10 -10 -10 ------- Run | Yrd Mat Min Sub Traps Triggered 1 | . 1 . . Indirectly . | . . . . Trap Hack Attempts . | . . . . Triggered . | . . . . Disarmed . | . . . . Reprogrammed . | . . . . Reused . | . . . . Traps Extracted . | . . . . Installed . | . . . . Triggered . | . . . . Machines | -11 -10 -10 -10 ---------- Run | Yrd Mat Min Sub Machines Disabled . | . . . . Max in Single Turn . | . . . . Machines Repaired . | . . . . Machines Dismantled . | . . . . Machines Sabotaged . | . . . . Overloaded Fab Kills . | . . . . Hacking | -11 -10 -10 -10 --------- Run | Yrd Mat Min Sub Machines Accessed 3 | . 1 2 . Terminals 1 | . 1 . . Fabricators . | . . . . Repair Stations . | . . . . Recycling Units . | . . . . Scanalyzers . | . . . . Garrison Access . | . . . . Total Hacks 4 | . 2 2 . Successful 3 | . 1 2 . Failed 1 | . 1 . . Catastrophic . | . . . . Database Lockouts . | . . . . Manual . | . . . . Terminals 2 | . 2 . . Fabricators . | . . . . Repair Stations . | . . . . Recycling Units . | . . . . Scanalyzers . | . . . . Garrison Access . | . . . . Terminal Hacks 3 | . 1 2 . Open Door 2 | . . 2 . Zone Layout 1 | . 1 . . Fabricator Hacks . | . . . . Repair Station Hacks . | . . . . Recycling Unit Hacks . | . . . . Scanalyzer . | . . . . Garrison Access Hacks . | . . . . Unauthorized Hacks . | . . . . Terminals . | . . . . Fabricators . | . . . . Repair Stations . | . . . . Recycling Units . | . . . . Scanalyzers . | . . . . Garrison Access . | . . . . Data Cores Recovered . | . . . . Used . | . . . . Hacking Detections 1 | . 1 . . Full Trace Events . | . . . . Feedback Events . | . . . . Feedback Blocked . | . . . . Robot Schematics Acquired . | . . . . Robots Built . | . . . . Authchips . | . . . . Time . | . . . . Total Robot Build Rating . | . . . . Part Schematics Acquired . | . . . . Parts Built . | . . . . Authchips . | . . . . Time . | . . . . Total Part Build Rating . | . . . . Parts Repaired . | . . . . Time . | . . . . Parts Recycled . | . . . . Recycled Matter . | . . . . Retrieved Matter . | . . . . Retrieved Components . | . . . . Parts Scanalyzed . | . . . . Part Schematics Acquired . | . . . . Parts Damaged . | . . . . Bothacking | -11 -10 -10 -10 ------------ Run | Yrd Mat Min Sub Used RIF Installer . | . . . . Robots Hacked . | . . . . Non-combat . | . . . . Combat . | . . . . Robot Hacks Applied . | . . . . Relay Couplers Released . | . . . . Fabnet Peak Effective % . | . . . . Robots Rewired . | . . . . Allies Hacked . | . . . . Hacks Repelled . | . . . . Allies | -11 -10 -10 -10 -------- Run | Yrd Mat Min Sub Total Allies . | . . . . Largest Group . | . . . . Highest-Rated Group . | . . . . Highest-Rated Ally . | . . . . Total Orders . | . . . . Ally Attacks . | . . . . Total Damage . | . . . . Kills . | . . . . Allies Corrupted . | . . . . Allies Melted . | . . . . Intel | -11 -10 -10 -10 ------- Run | Yrd Mat Min Sub Active Infowar (turns) 692 | 18 284 305 85 Optics 32 | . . . 32 Seismic 660 | 18 284 305 53 Robot Analysis Total . | . . . . Derelict Logs Recovered 2 | . . . 2 Drone Launches . | . . . . Drone Recoveries . | . . . . Exploration | -11 -10 -10 -10 ------------- Run | Yrd Mat Min Sub Turns Passed 1025 | 62 284 305 374 Spaces Moved 760 | 40 213 233 274 Core 11 | 11 . . . Treads . | . . . . Legs 749 | 29 213 233 274 Wheels . | . . . . Hover . | . . . . Flight . | . . . . Fastest Speed 50 | 50 120 120 120 Average Speed 119 | 103 120 120 120 Slowest Speed 120 | 120 120 120 120 Overloaded Moves . | . . . . Propulsion Burnouts . | . . . . Robots Hopped . | . . . . Potential Cave-ins . | . . . . Cave-ins Triggered . | . . . . Exploration Rate (%) 24 | 5 27 50 17 Regions Visited 3 Branch Regions 2 Pre-discovered Areas . | . . . . Known Exits Taken . | . . . . Unknown Exits Taken 3 | 1 1 1 . Scrap Searched 3 | . . . 3 Spaces Dug . | . . . . Terrain Destroyed 15 | . . . 15 Melee . | . . . . Projectile . | . . . . AOE 15 | . . . 15 Terrain Rammed . | . . . . Walls Destroyed . | . . . . Machines Disabled . | . . . . Actions | -11 -10 -10 -10 --------- Run | Yrd Mat Min Sub Total 831 | 49 230 249 303 Wait 7 | . 2 1 4 Move 757 | 39 212 232 274 Hop . | . . . . Pick Up 14 | . 6 6 2 Fast Attach 10 | 6 2 . 2 Attach 4 | . . . 4 Detach . | . . . . Swap 2 | . . 1 1 Drop 6 | . 1 3 2 Fire 27 | 4 5 6 12 Melee 2 | . . . 2 Ram . | . . . . Kick 2 | . 2 . . Crush . | . . . . Escape Stasis . | . . . . Rewire . | . . . . Trap . | . . . . Miscellaneous . | . . . . Route ------- -11/Scrapyard -10/Materials -10/Mines (discovered 2 exits: [*Mat] / [*Sub]) -10/Subcaves History --------- Turn | Location | Event 2 | -11/Scrapyard | Met Revision 17 8 | -11/Scrapyard | Discovered new exit (range 16) 63 | -11/Scrapyard | Entered Materials 298 | -10/Materials | Discovered new exit (range 16) 304 | -10/Materials | Build established: Mutant 347 | -10/Materials | Entered Mines 354 | -10/Mines | Met a Derelict shopkeep closing up shop 360 | -10/Mines | Met a Derelict bent on vengeance 465 | -10/Mines | Met a Derelict who couldn't figure out how to use a Trap Extractor 508 | -10/Mines | Discovered new exit (range 6) 598 | -10/Mines | Assembled infested the area 601 | -10/Mines | Discovered new exit (range 7) 603 | -10/Mines | Assisted by a Guerilla fighting off Assembled 623 | -10/Mines | Core integrity fell below 50% 652 | -10/Mines | Entered Subcaves 653 | -10/Subcaves | Approached by a straggling Scientist 674 | -10/Subcaves | Learned location of 2 exits from Materials 679 | -10/Subcaves | Lost 3 parts (1p1n1w) 710 | -10/Subcaves | Core integrity fell below 20% 859 | -10/Subcaves | Learned Materials stockpile data 1026 | -10/Subcaves | Destroyed by SS-991(R) with Subdweller Machine Gun Last Messages --------------- 00719_ Found Battle Rifle. 00719_ Found 47 Matter. 00720_ Subatomizers dissect the Sub. Power Source. 00721_ Acquired Battle Rifle. 00726_ Acquired Sub. Power Source. 5G-E4V(c): "I think it's somewhere west of here" 00859_ Acquired derelict log, extracted data. Data stored: Materials stockpile data. 5G-E4V(c): "I think it's somewhere west of here" 00979_ FV-UJ1(R) destroyed. 00981_ Y8-7OU(R) destroyed. 00991_ Acquired 3 matter. 00992_ Subatomizers dissect the Sub. Power Source. 00994_ Acquired Sub. Optics. 00999_ Acquired Sub. Monowheel. 01005_ Subatomizers dissect the Sub. Power Source. 01006_ Acquired 14 matter. 5G-E4V(c): "I think it's somewhere northwest of here" 01017_ Subatomizers dissect the Sub. Power Source. 01017_ Aluminum Leg destroyed. Map ----- +----------------------------------------------------+ | ????????????????????????????????????????## ### | | ?????????????????????????????????????????## #?# | | ?????????????????????????????????????????## ### | | ???????????????????????????????????????### ## | | ???????????????????????????????????????# ### | | ???????????????????????????????????????# ### | | ???????????????????????????????????????## | | ???????????????????????????????????????## | | ???????????????????????????????????????# | | ???????????????????????????????????????# | | ???????????????????????????????????????# | | ???????????????????????????????????????# / | | ???????????????????????????????????????# | | ???????????????????????????????????????# | | ???????????????????????????????????????# ### | | ???????????????????????????????????????##??## | | ?????????????????????????????????????????### | | ????????????????#####????#######????????## | | ????????????????# # ????"""" ##??????## # | | ?????????????????? " ????# """"#??????# # | | ??????????????????? " ???# "#??###### | | ????????????????????? #### #??# ## | | ??????????????????????# # ##?# | | ???????????????????????# ! #?# ### | | ???????????????# "## ## [ #### #?? | | ???????????????# "" R@ ]c ##? | | ???????????????##"" *& """ # #? | | ????????????????#""""" # """##### ## # | | ????????????????##"" #?# ""###??## ######### | | ?????????????????#""???#########????# #???????? | | ?????????????????#?????????????????# ##???????? | | ???????????????????????????????????## ##????????? | | ????????????????????????????????????####?????????? | | ?????????????????????????????????????????????????? | | ?????????????????????????????????????????????????? | | ?????????????????????????????????????????????????? | | ?????????????????????????????????????????????????? | | ?????????????????????????????????????????????????? | | ?????????????????????????????????????????????????? | | ?????????????????????????????????????????????????? | | ?????????????????????????????????????????????????? | | ?????????????????????????????????????????????????? | | ?????????????????????????????????????????????????? | | ?????????????????????????????????????????????????? | | ?????????????????????????????????????????????????? | | ?????????????????????????????????????????????????? | | ?????????????????????????????????????????????????? | | ?????????????????????????????????????????????????? | | | | | +----------------------------------------------------+ Best States ------------- Heat Dissipation 25 Energy Generation 15 Energy Capacity 250 Matter Stores 300 Matter Capacity 300 Sight Range 21 Terrain Scan Density 10 Armor Coverage 150 Evasion (%) 55 Item Schematics ----------------- None Robot Schematics ------------------ None Fabricated ------------ Nothing Repaired ---------- Nothing Alien Tech Used ----------------- None Achievements -------------- None Challenges ------------ None Game ------ Seed PitchforkSmartbombAutohacker Manual? 0 Play Time 00:13:45 Cumulative 196.8 hours Start 2025.10.06 @ 12:24:23 End 2025.10.06 @ 12:37:45 Sessions 1 Manual Loads 0 Difficulty Rogue Special Mode None Game No. 176 Rogue 176 Adventurer 0 Explorer 0 Win Type - Total 0 Types 0/0/0/0/0/0/0/0/0/0 Lore% 26 Gallery% 41 Achievement% 39 Wizard Run 0 Options --------- Layout 0 ASCII 1 Keyboard 0 Movement Mouse Keybinds 0 Fullscreen 1 Font 18/SmallcapsGlow Map View 38x25 Zoom Use 35% Tactical HUD 1 Map Filters NONE Filters NONE Steam 1 RUN: 77952d10-bf60-43f2-9825-1c4afa1c6cc8